Cogmind - Beta 13 @@@ ROGUE MODE // 2024.04.14 @ 13:24:47 Player: CanadianCogs Result: Destroyed by Y-45 Defender with Beam Rifle Performance ------------- Evolutions (2) 1000 Regions Visited (4) 800 Robots Destroyed (25) 125 Value Destroyed (402) 402 Prototype IDs (0) 0 Alien Tech Used (0) 0 Bonus (0) 0 TOTAL SCORE: 2327 Bonus ------- None Cogmind --------- Core Integrity 0/550 Matter 295/300 Energy 99/100 System Corruption 3% Temperature Cool (9) Movement Core (50) Location -8/Materials Parts ------- > --- POWER (1) -------- (None) > --- PROPULSION (4) --- (None) > --- UTILITY (2) ------ System Shield > --- WEAPON (4) ------- Mining Claw > --- INVENTORY (5) ---- Light Ion Engine Cooling System Terrain Scanner Peak State ------------ > --- POWER ------------ Light Ion Engine > --- PROPULSION ------- Airjet Airjet Airjet Airjet > --- UTILITY ---------- Terrain Scanner System Shield > --- WEAPON ----------- Heavy EM Pulse Gun Heavy EM Pulse Gun Heavy EM Pulse Gun > --- INVENTORY -------- Cooling System Core Shielding Weapon Shielding [Rating: 23] Favorites ----------- Power Light Ion Engine Engine Light Ion Engine Propulsion Airjet Wheel Wheel Hover Unit Airjet Utility Terrain Scanner Device Terrain Scanner Hackware System Shield Protection Weapon Shielding Weapon Heavy EM Pulse Gun Energy Gun Heavy EM Pulse Gun Ballistic Gun Light Assault Rifle Ballistic Cannon Light Cannon Slashing Weapon Mining Claw Build | -11 -10 -9 -9 -8 ------- Run | Yrd Mat Mat Min Mat Slots Evolved 4 | . . 2 . 2 Power . | . . . . . Propulsion 2 | . . . . 2 Utility . | . . . . . Weapon 2 | . . 2 . . Parts Attached 29 | 5 12 5 1 6 Power 4 | 1 2 . . 1 Engine 4 | 1 2 . . 1 Core . | . . . . . Reactor . | . . . . . Propulsion 9 | 2 3 2 . 2 Treads . | . . . . . Leg . | . . . . . Wheel 3 | 2 1 . . . Hover 6 | . 2 2 . 2 Flight . | . . . . . Utility 7 | . 3 1 1 2 Device 3 | . 2 . 1 . Storage . | . . . . . Processor . | . . . . . Hackware 1 | . . 1 . . Protection 3 | . 1 . . 2 Artifact . | . . . . . Weapon 9 | 2 4 2 . 1 Energy Gun 6 | 2 2 2 . . Energy Cannon . | . . . . . Ballistic Gun 1 | . 1 . . . Ballistic Cannon 1 | . 1 . . . Launcher . | . . . . . Special Weapon . | . . . . . Impact Weapon . | . . . . . Slashing Weapon 1 | . . . . 1 Piercing Weapon . | . . . . . Special Melee Weapon . | . . . . . Unidentified Prototypes . | . . . . . Parts Lost 11 | . . 1 . 10 Power 1 | . . . . 1 Propulsion 4 | . . . . 4 Utility 2 | . . . . 2 Weapon 4 | . . 1 . 3 Highest Loss Streak 9 | . . 1 . 9 To Critical Strikes . | . . . . . Average Slot Usage (%) 81 | . 89 88 88 45 Engine 11 | . 14 11 11 3 Wheel 12 | . 27 . . . Hover 10 | . . 20 22 16 Device 9 | . 10 11 11 1 Hackware 3 | . . 1 11 9 Protection 6 | . 7 9 . 5 Energy Gun 23 | . 21 34 33 7 Ballistic Gun 1 | . 3 . . . Ballistic Cannon 1 | . 2 . . . Naked Turns . | . . . . . Heaviest Build 17 | 8 11 17 13 13 Greatest Support 32 | 26 26 16 16 32 Greatest Overweight (x) 4 | . 1 4 . . Average Overweight (x) . | . . . . . Largest Inventory Capacity 5 | 5 5 5 5 5 Average Capacity 5 | 5 5 5 5 5 Most Carried 5 | 5 5 5 5 4 Average Carried 3 | 1 2 4 5 2 Final Capacity 5 | 5 5 5 5 5 Final Carried 5 | . 5 5 5 3 Class Distribution -------------------- 58% | Mutant 41% | Skirmisher Dominant Class ---------------- Mutant | -10/Materials Skirmisher | -9/Materials Skirmisher | -9/Mines Mutant | -8/Materials Resources | -11 -10 -9 -9 -8 ----------- Run | Yrd Mat Mat Min Mat Matter Collected 452 | 237 56 149 10 . Remotely . | . . . . . Salvage Created 642 | . 236 338 . 68 Parts 60 | . 22 27 . 11 Haulers Intercepted . | . . . . . Recyclers Shooed . | . . . . . Parts Field Recycled . | . . . . . Retrieved Matter . | . . . . . Parts Self-Destructed . | . . . . . Prevented . | . . . . . Kills | -11 -10 -9 -9 -8 ------- Run | Yrd Mat Mat Min Mat Combat Hostiles Destroyed 19 | . 8 7 . 4 Melee 1 | . . . . 1 Guns 17 | . 8 7 . 2 AOE 1 | . . . . 1 Classes Destroyed 5 | . 4 1 . . Recycler 2 | . . 2 . . Operator 2 | . 1 1 . . Watcher 2 | . 1 1 . . Swarmer 15 | . 6 5 . 4 Grunt 4 | . 2 2 . . Best Kill Streak 6 | . 6 4 . 2 Combat Bots Only 6 | . 6 3 . 2 Max Kills in Single Turn 2 | . 1 2 . 2 Gunslinging 1 | . . 1 . . Exploded 1 | . . . . 1 Melee 1 | . . . . 1 Uniques/NPCs Destroyed . | . . . . . Combat | -11 -10 -9 -9 -8 -------- Run | Yrd Mat Mat Min Mat Hostile Shots Fired 230 | . 26 29 . 175 Missed 82 | . 7 9 . 66 Damage Taken 1381 | . 194 219 . 968 Core 634 | . 50 28 . 556 Absorbed by Shields . | . . . . . Redirected to Shielding 99 | . . 30 . 69 Core Remaining (%) 91 | 100 80 . 93 . Volleys Fired 42 | . 21 17 . 4 Largest 4 | . 2 4 . 3 Hottest 180 | . 80 180 . 135 Shots Fired 102 | . 38 53 . 11 Gun 98 | . 34 53 . 11 Cannon 4 | . 4 . . . Launcher . | . . . . . Special . | . . . . . Kinetic 10 | . 10 . . . Thermal 11 | . 11 . . . Explosive . | . . . . . Electromagnetic 81 | . 17 53 . 11 Robot Hit Streak 14 | . 10 14 . 5 Robot Miss Streak 6 | . 1 6 . 3 Penetration Max . | . . . . . Secondary Targets 5 | . 2 2 . 1 Max Gunslinging Chain 1 | . 1 1 . 1 Shots Hit Robots 70 | . 27 32 . 11 Core Hits 28 | . 13 11 . 4 Critical Kills . | . . . . . Critical Parts Destroyed . | . . . . . Critical Strikes . | . . . . . Melee Attacks 10 | . . . . 10 Impact . | . . . . . Slashing 10 | . . . . 10 Piercing . | . . . . . Sneak Attacks . | . . . . . Combat Hostiles . | . . . . . Follow-up Attacks . | . . . . . Damage Inflicted 1191 | . 378 569 . 244 Guns 924 | . 312 521 . 91 Cannons 35 | . 35 . . . Explosions 118 | . 31 48 . 39 Melee 94 | . . . . 94 Ramming 20 | . . . . 20 Kinetic 59 | . 59 . . . Thermal 209 | . 122 48 . 39 Explosive . | . . . . . Electromagnetic 809 | . 197 521 . 91 Impact . | . . . . . Slashing 94 | . . . . 94 Piercing . | . . . . . Highest Corruption 3 | . 1 . . 3 Average Corruption 1 | . 1 . . 2 Corruption Purged . | . . . . . Corruption Blocked . | . . . . . Effects 1 | . . . . 1 Data Loss (minor) 1 | . . . . 1 Overload Shots . | . . . . . Overflow Damage 32 | . 5 8 . 19 Projectiles . | . . . . . Explosions 32 | . 5 8 . 19 Melee . | . . . . . Knockbacks 1 | . 1 . . . Impact . | . . . . . Kinetic 1 | . 1 . . . Secondary . | . . . . . Self-Inflicted Damage 73 | . 24 30 . 19 Shots 3 | . 1 1 . 1 Rammed 8 | . . . . 8 Targets Rammed 8 | . . . . 8 Kicked . | . . . . . Crushed . | . . . . . Highest Temperature 183 | . 22 183 . 116 Average Temperature 70 | . 8 81 . 46 Received Heat Transfer 129 | . 30 36 . 63 Siege Activations . | . . . . . Robots Corrupted . | . . . . . Combat Hostiles . | . . . . . Parts Fried 7 | . 3 4 . . Impact Corruptions . | . . . . . Robots Melted . | . . . . . Combat Hostiles . | . . . . . Parts Melted . | . . . . . Heat Transferred 350 | . 250 50 . 50 Parts Sabotaged . | . . . . . Parts Stolen . | . . . . . Parts Stripped . | . . . . . Power Chain Reactions 3 | . 1 1 . 1 Alert | -11 -10 -9 -9 -8 ------- Run | Yrd Mat Mat Min Mat Peak Influence 355 | . 329 355 134 237 Initial 134 | . . 65 134 52 Average 160 | . 157 237 134 127 Maximum Alert Level 1 | . 1 1 . 1 Low Security (%) 65 | 100 58 38 100 81 Level 1 34 | . 41 61 . 18 Level 2 . | . . . . . Level 3 . | . . . . . Level 4 . | . . . . . Level 5 . | . . . . . High Security . | . . . . . Max Security . | . . . . . Squads Dispatched 5 | . 3 2 . . Investigation 3 | . 2 1 . . Extermination . | . . . . . Reinforcement 2 | . 1 1 . . Assault . | . . . . . Garrison . | . . . . . Intercept . | . . . . . Searches Triggered . | . . . . . Construction Impeded . | . . . . . Haulers Reinforced . | . . . . . Active Scanning Responses . | . . . . . Cargo Convoy Interrupts . | . . . . . Stealth | -11 -10 -9 -9 -8 --------- Run | Yrd Mat Mat Min Mat Distress Signals 3 | . 1 2 . . Communications Jammed . | . . . . . Distress Signals . | . . . . . Times Spotted 47 | . 14 13 . 20 Peak Tracking Total 12 | . 6 5 . 12 Tactical Retreats 5 | . . . . 5 Traps | -11 -10 -9 -9 -8 ------- Run | Yrd Mat Mat Min Mat Traps Triggered . | . . . . . Indirectly . | . . . . . Trap Hack Attempts . | . . . . . Triggered . | . . . . . Disarmed . | . . . . . Reprogrammed . | . . . . . Reused . | . . . . . Traps Extracted . | . . . . . Installed . | . . . . . Triggered . | . . . . . Machines | -11 -10 -9 -9 -8 ---------- Run | Yrd Mat Mat Min Mat Machines Disabled 4 | . 1 3 . . Max in Single Turn 1 | . 1 1 . . Machines Repaired . | . . . . . Machines Dismantled . | . . . . . Machines Sabotaged . | . . . . . Overloaded Fab Kills . | . . . . . Hacking | -11 -10 -9 -9 -8 --------- Run | Yrd Mat Mat Min Mat Machines Accessed 6 | . 3 2 . 1 Terminals 6 | . 3 2 . 1 Fabricators . | . . . . . Repair Stations . | . . . . . Recycling Units . | . . . . . Scanalyzers . | . . . . . Garrison Access . | . . . . . Total Hacks 24 | . 13 7 . 4 Successful 12 | . 6 4 . 2 Failed 12 | . 7 3 . 2 Catastrophic 3 | . 1 1 . 1 Database Lockouts . | . . . . . Manual 24 | . 13 7 . 4 Terminals 24 | . 13 7 . 4 Fabricators . | . . . . . Repair Stations . | . . . . . Recycling Units . | . . . . . Scanalyzers . | . . . . . Garrison Access . | . . . . . Terminal Hacks . | . . . . . Fabricator Hacks . | . . . . . Repair Station Hacks . | . . . . . Recycling Unit Hacks . | . . . . . Scanalyzer . | . . . . . Garrison Access Hacks . | . . . . . Unauthorized Hacks 12 | . 6 4 . 2 Terminals 12 | . 6 4 . 2 Track 3 | . 2 1 . . Botnet 6 | . 3 2 . 1 Disrupt 3 | . 1 1 . 1 Fabricators . | . . . . . Repair Stations . | . . . . . Recycling Units . | . . . . . Scanalyzers . | . . . . . Garrison Access . | . . . . . Data Cores Recovered . | . . . . . Used . | . . . . . Hacking Detections 6 | . 3 2 . 1 Full Trace Events 6 | . 3 2 . 1 Feedback Events 1 | . 1 . . . Corruption 1 | . 1 . . . Feedback Blocked . | . . . . . Robot Schematics Acquired . | . . . . . Robots Built . | . . . . . Authchips . | . . . . . Time . | . . . . . Total Robot Build Rating . | . . . . . Part Schematics Acquired . | . . . . . Parts Built . | . . . . . Authchips . | . . . . . Time . | . . . . . Total Part Build Rating . | . . . . . Parts Repaired . | . . . . . Time . | . . . . . Parts Recycled . | . . . . . Recycled Matter . | . . . . . Retrieved Matter . | . . . . . Retrieved Components . | . . . . . Parts Scanalyzed . | . . . . . Part Schematics Acquired . | . . . . . Parts Damaged . | . . . . . Bothacking | -11 -10 -9 -9 -8 ------------ Run | Yrd Mat Mat Min Mat Used RIF Installer . | . . . . . Robots Hacked . | . . . . . Non-combat . | . . . . . Combat . | . . . . . Robot Hacks Applied . | . . . . . Relay Couplers Released . | . . . . . Fabnet Peak Effective % . | . . . . . Robots Rewired . | . . . . . Allies Hacked . | . . . . . Hacks Repelled . | . . . . . Allies | -11 -10 -9 -9 -8 -------- Run | Yrd Mat Mat Min Mat Total Allies 1 | . . . 1 . Largest Group 1 | . . . 1 1 Highest-Rated Group 31 | . . . 31 31 Highest-Rated Ally 31 | . . . 31 31 Total Orders . | . . . . . Ally Attacks 2 | . . . . 2 Total Damage 21 | . . . . 21 Kills . | . . . . . Allies Corrupted . | . . . . . Allies Melted . | . . . . . Intel | -11 -10 -9 -9 -8 ------- Run | Yrd Mat Mat Min Mat Robot Analysis Total . | . . . . . Derelict Logs Recovered 1 | . . . 1 . Drone Launches . | . . . . . Drone Recoveries . | . . . . . Exploration | -11 -10 -9 -9 -8 ------------- Run | Yrd Mat Mat Min Mat Turns Passed 1139 | 43 504 248 160 184 Spaces Moved 1106 | 45 438 170 283 170 Core 105 | 17 . 5 . 83 Treads . | . . . . . Legs . | . . . . . Wheels 445 | 28 417 . . . Hover 556 | . 21 165 283 87 Flight . | . . . . . Fastest Speed 48 | 50 56 56 56 48 Average Speed 70 | 74 88 62 56 51 Slowest Speed 250 | 90 95 250 56 60 Overloaded Moves . | . . . . . Propulsion Burnouts . | . . . . . Robots Hopped . | . . . . . Cave-ins Triggered . | . . . . . Exploration Rate (%) 34 | 3 63 21 64 23 Regions Visited 4 Branch Regions 1 Pre-discovered Areas 1 | . . . 1 . Known Exits Taken . | . . . . . Unknown Exits Taken 4 | 1 1 1 1 . Scrap Searched 2 | . . . 2 . Spaces Dug . | . . . . . Terrain Destroyed 11 | . 4 3 . 4 Melee . | . . . . . Projectile . | . . . . . AOE 11 | . 4 3 . 4 Terrain Rammed . | . . . . . Walls Destroyed . | . . . . . Machines Disabled . | . . . . . Actions | -11 -10 -9 -9 -8 --------- Run | Yrd Mat Mat Min Mat Total 1371 | 54 523 273 284 237 Wait 127 | . 19 72 . 36 Move 1102 | 44 437 169 282 170 Hop . | . . . . . Pick Up 30 | 5 18 5 . 2 Fast Attach 6 | . 3 2 1 . Attach 19 | 5 6 3 . 5 Detach 1 | . . . . 1 Swap 4 | . 3 . . 1 Drop 22 | . 16 5 1 . Fire 42 | . 21 17 . 4 Melee 10 | . . . . 10 Ram 8 | . . . . 8 Kick . | . . . . . Crush . | . . . . . Escape Stasis . | . . . . . Rewire . | . . . . . Trap . | . . . . . Miscellaneous . | . . . . . Route ------- -11/Scrapyard -10/Materials (discovered 2 exits: *Mat x2) -9/Materials -9/Mines (discovered 2 exits: *Mat / [*Zio]) -8/Materials History --------- Turn | Location | Event 9 | -11/Scrapyard | Discovered new exit (range 16) 44 | -11/Scrapyard | Entered Materials 205 | -10/Materials | Discovered new exit (range 7) 311 | -10/Materials | Build established: Mutant 442 | -10/Materials | Discovered new exit (range 6) 548 | -10/Materials | Entered another Materials area 548 | -9/Materials | Evolved 2 slots: Weapon x2 793 | -9/Materials | Discovered new exit (range 7) 796 | -9/Materials | Entered Mines 815 | -9/Mines | Learned location of Zion (-7) 833 | -9/Mines | Build established: Skirmisher 855 | -9/Mines | Received a Mining Laser from a helpful Derelict 885 | -9/Mines | A Derelict revealed a hidden shortcut to a safe place 918 | -9/Mines | YI-UF0 nonchalantly dropped a Grenade Launcher on the ground 935 | -9/Mines | Discovered new exit (range 7) 956 | -9/Mines | Entered Materials 956 | -8/Materials | Accompanied by 1 ally 956 | -8/Materials | Evolved 2 slots: Propulsion x2 1091 | -8/Materials | Core integrity fell below 50% 1097 | -8/Materials | Lost 9 parts (1p4n1u3w) 1130 | -8/Materials | Core integrity fell below 20% 1140 | -8/Materials | Destroyed by Y-45 Defender with Beam Rifle Last Messages --------------- Trojan loaded successfully. Testing... Terminal linked with 0 systems. Awaiting botnet instructions. >>Trojan(Disrupt) Trojan loaded successfully. Testing... Disruption routine running. 01060_ Slug penetrates Wall. 01060_ Terminal disabled. 01066_ C-30 ARC bursts open, deploying its payload. 01066_ S-10 Pest unfolds itself. 01066_ Airjet destroyed. 01086_ System corrupted: Component data lost. 01092_ S-10 Pest destroyed. 01094_ T-07 Excavator is excavating. 01107_ Acquired Mining Claw. 01109_ S-10 Pest destroyed. 01114_ Core Shielding destroyed. 01118_ S-10 Pest destroyed. Map ----- +----------------------------------------------------+ | | | | | | | | | | | | | | | | | | | | | | | | | | | | | | | | | | | | | | | | | | | ?????????????########????????????? | | ?????????????# ???????????? | | ??????######## "S """??????????? | | ??????# Ys # """ """""?????????? | | ??????# s@ =*# "" """""?????????? | | ??????#=%"""%# """"" #???????? | | ??????# ="""=# ! """ #???????? | | ??????#[ """[# ! #??????? | | ??????# ###+###########?????? | | ??????#####+## ##### #?????? | | ????????# #?????? | | ????????# +?????? | | ????????# """ # #?????? | | ????????####### """ #??###?????? | | ????????????# # """ #??????????? | | ?????????????# #??????????? | | ?????????????## #??????????? | | ??????????????# #??????????? | | ??????????????###### #??????????? | | ???????????????????# #??????????? | | ???????????????????# #??????????? | | ???????????????????# #??????????? | | ???????????????????# #??#######?? | | ???????????????????# #? #?? | | ???????????????????# #? """ #?? | | ???????????????????# # G" ??? | | ???????????????????# # ! """ #?? | | ???????????????????# + #?? | | ???????????????????# # """"" #?? | +----------------------------------------------------+ Best States ------------- Heat Dissipation 35 Energy Generation 10 Energy Capacity 250 Matter Stores 300 Matter Capacity 300 Sight Range 16 Terrain Scan Range 14 Terrain Scan Density 10 Core Shielding 20 Weapon Shielding 33 Evasion (%) 55 Defensive Hacking 10 Item Schematics ----------------- None Robot Schematics ------------------ None Fabricated ------------ Nothing Alien Tech Used ----------------- None Achievements -------------- None Challenges ------------ None Game ------ Seed SignalGreatChip Manual? 0 Play Time 00:22:53 Cumulative 15.0 hours Start 2024.04.14 @ 13:02:54 End 2024.04.14 @ 13:24:47 Sessions 1 Manual Loads 0 Difficulty Rogue Special Mode None Game No. 19 Rogue 19 Adventurer 0 Explorer 0 Win Type - Total 0 Types 0/0/0/0/0/0/0/0/0 Lore% 9 Gallery% 20 Achievement% 18 Wizard Run 0 Options --------- Layout 0 ASCII 0 Keyboard 0 Movement Mouse Keybinds 0 Fullscreen 2 Font 18/SmallcapsGlow Map View 38x25 Zoom Use 98% Tactical HUD 1 Map Filters NONE Filters NONE Steam 1 RUN: 5514fbad-19d0-49c9-b859-c6ff3a67d746